Workbook

Sheet Proj Info
A1: =CONCATENATE("Project Information Sheet: (version ",D4,")") -> Project Information Sheet: (version 1.3.09) | P1: i
A2: Input cells highlighted in light yellow are mandatory entries. | F2: Input cells highlighed in light orange are optional entries.
A4: Location | C4: Excel_Version_No | D4: 1.3.09 | F4: Comments/Instructions (in blue font):
A5: Street_Address | B5: 124456 example Street | F5: Enter address number and street name | Y5: =_xlfn.IFNA(VLOOKUP(Zip_code,Climate!$A$2:$D$32481,2,FALSE),"Invalid U.S. postal zip code") -> 42.29588
A6: Unit_ID | B6: 1A | F6: Enter unit identification if townhouses with same street address | Z6: No | AA6: Standard | AB6: Timer | AC6: One | AD6: Standard
A7: City | B7: Redondo Beach | F7: Enter name of nearest City where project is located | Z7: Yes | AA7: Compact | AB7: Temperature | AC7: Multiple | AD7: Low-flow
A8: State | B8: CA | F8: Enter two-letter postal code for State | AB8: Demand
A9: Zip_Code | B9: 90277 | C9: =IF(Y5="Invalid U.S. postal zip code",Y5,"") ->  | F9: Enter valid 5 digit U.S. postal zip code | AB9: Manual
A10: TMY_State | B10: =VLOOKUP(Zip_code,Climate!$A$2:$I$32576,6,FALSE) -> California | C10: =VLOOKUP(Zip_code,Climate!$A$2:$H$32481,6,FALSE) -> California
A11: TMY_Weather_Station | B11: =VLOOKUP(Zip_code,Climate!$A$2:$I$32576,8,FALSE) -> Jack Northrop Fld H | C11: =VLOOKUP(Zip_code,Climate!$A$2:$H$32481,6,FALSE) -> California | D11: =VLOOKUP(Zip_code,Climate!$A$2:$I$32481,6,FALSE) -> California | E11: =VLOOKUP(Zip_code,Climate!$A$2:$H$32481,6,FALSE) -> California
A12: Providers
A13: Builder_Name | B13: ABC Green Developments | F13: Enter the builder of record
A14: Rater_Name | B14: Robert Rater | F14: Enter the name of the Rater certifed to perform HERS H2O Ratings
A15: Rater_RTIN | B15: 0987654 | F15: Enter the certified Rater's RTIN (unique ID number assigned by RESNET)
A16: Rater_e-mail | B16: rater@rater.com | F16: Enter certified Rater's e-mail address
A17: Site_Rating_Date | B17: 2020-02-05 | F17: Enter date H2O Rating Site visit was completed
A18: Rating_Field_Inspector_ID_No | B18: RO9668 | F18: Enter Rating Field Inspector Identification Number if applicable
A19: QA_Provider_Name | B19: NewQA Associates | F19: Enter the name of the Rater's Quality Assurance Provider
A20: QA_Provider_ID | B20: 9998-999 | F20: Enter the QA Provider's unique ID number
A21: QA_Provider_e-mail | B21: qaprovider@providerville.com | F21: Enter the Quality Assurance provider's e-mail addres
A22: Rating_Company | B22: WeAreTheRatingCo, LLC. | F22: Enter the name of the Rating Company
A23: Home Characteristics
A24: RESNET_HERS_Index_ID | F24: If Home is HERS Rated, enter HERS Index Registration ID here.
A25: RESNET_HERS-H2O_ID | F25: If there an existing HERS H2O ID, enter it here.
A26: Conditioned_Floor_Area | B26: 2400 | C26: sq.ft. | F26: Enter conditioned floor area in square feet
A27: Number_of_bedrooms | B27: 3 | F27: Entry must be an integer
A28: Number_of_floors | B28: 2 | F28: Entry must be an integer
A29: Basement | B29: No | F29: Select answer from pull-down
A30: Home Water Features
A31: Water service pressure
A32: Pressure_tank_psi_limit | B32: No | F32: Select 'Yes' from pull-down if pressure tank installed and set ≤ 90 psi
A33: Pressure_regulator_psi_limit | B33: No | F33: Select 'Yes' from pull-down if pressure regulating valve installed upstream of fixtures and pressure test ≤ 90
A34: Documentation_psi | B34: No | F34: Select 'Yes' from pull-down if written documentation from water supplier that pressure ≤ 90
A35: Measured_pressure | B35: 75 | C35: psig | D35: (must be > 29 psig) | F35: Enter static water gage reading (psig) measured at the indoor fixture outlet on the lowest floor closest to the water service entry
A36: Water_softener | B36: No | F36: Select answer from pull-down
A37: Toilets:
A38: Flush_Volume_Marker | B38: No | F38: Select answer from pull-down
A39: No_single-flush_toilets | B39: 1 | F39: Enter the number of single-flush toilets
A40: No_dual-flush_toilets | B40: 0 | F40: Enter the number of dual-flush toilets
A41: Single-flush_volume | B41: 1.6 | C41: gpf | F41: Enter average gallons per flush (gpf) of all single-flush toilets
A42: Dual-flush_volume | B42: 0 | C42: gpf | F42: Enter average gallons per flush (gpf) of all duel-flush toilets
A43: Non-water-consuming | B43: No | F43: Select 'Yes' from pull-down if non-water-consuming toilets present
A44: No_non-water_toilets | B44: 0 | F44: Enter the number of non-water-consuming toilets
A45: Shower_head_flow_rate | B45: 2.5 | C45: gpm | F45: Enter average gallons per minute (gpm) flow rate of all shower heads.
A46: Lavatory_faucet_efficiency | B46: Standard | F46: Select 'Standard' or 'Low-flow' from pull-down
A47: Kitchen_sink_faucet_flow_rate | B47: 2.2 | C47: gpm | F47: Enter gallons per minute (gpm) flow rate of kitchen sink
A48: Dishwasher
A49: DW_Make | B49: WPCmake | F49: Per Dishwasher specifications (cut sheet)
A50: DW_Model | B50: WTDmodel | F50: Per Dishwasher specifications (cut sheet)
A51: DW_Capacity | B51: Standard | F51: Select answer from pull-down as labeled on Energy Guide Label
A52: DW_Gallons_per_cycle | B52: 8.16 | D52: Takes precidence if entered | F52: Enter gallons per cycle from CCMS database. Enter 8.16 when dishwasher not installed.
A53: OR use label data to determine gal/cycle | G53: CCMS database: | H53: https://www.regulations.doe.gov/certification-data/CCMS-All.html#q=Product_Group_s%3A*
A54: DW_Label_Energy_Rating | B54: 467 | C54: kWh/y | D54: (from label)
A55: DW_Electric_Hot_Water_Cost | B55: 56.04 | C55: $/y | D55: (from label) | F55: Note: Dishwashers may use default values from Table 4.2.2.5(2), ANSI/RESNET/ICC 301-2019 Addendum A-2019 for detailed input
A56: DW_Gas_Hot_Water_Costs | B56: 33.11 | C56: $/y | D56: (from label) | F56: Note: Clothes Washers may use default values from Table 4.2.2.5(3), ANSI/RESNET/ICC 301-2019 Addendum A-2019 for detailed input
A57: DW_Electric_price | B57: 0.12 | C57: $/kWh | D57: (from label)
A58: DW_Gas_price | B58: 1.09 | C58: $/therm | D58: (from label) | K58: Typical Dishwasher Energy Guide Label | O58: Typical Clothes Washer Energy Guide Label
A59: DW_Wash_loads_per_week | B59: 4 | D59: (integer from label)
A60: Clothes washer:
A61: CW_Make | B61: XYZmake | D61: per specificaitons
A62: CW_Model | B62: X88model | D62: per specificaitons
A63: CW_Capacity | B63: 3 | C63: cu.ft | F63: Enter 3.0 when clothes washer not installed
A64: CW_Integrated_Water_Factor | B64: 11.4 | D64: from CCMS database | F64: Enter 11.4 when clothes washer not installed
A65: OR add following data to disaggregate hot and cold water use
A66: CW_IMEF | B66: 1 | D66: from CCMS database
A67: CW_Label_Energy_Rating | B67: 400 | C67: kWh/y | D67: (from label)
A68: CW_Electric_Hot_Water_Cost | B68: 48 | C68: $/y | D68: (from label)
A69: CW_Gas_Hot_Water_Costs | B69: 27 | C69: $/y | D69: (from label)
A70: CW_Electric_price | B70: 0.12 | C70: $/kWh | D70: (from label)
A71: CW_Gas_price | B71: 1.09 | C71: $/therm | D71: (from label)
A72: CW_Wash_loads_per_week | B72: 6 | D72: (integer from label)
A73: Hot Water System
A74: HW_System_pipe_length | B74: 89.28 | C74: ft | F74: Enter length in linear feet of hot water piping (PipL) per requirements of Section 4.2.2.5.2.11, ANSI/RESNET/ICC 301-2019
A75: HW_pipe_insulated | B75: No | F75: Select 'Yes' from pull-down if R-3 pipe insulation in accordance with Section 4.2.2.5.2.11, ANSI/RESNET/ICC 301-2019
A76: HW_recirculation | B76: No | F76: Select 'Yes' from pull-down if hot water recirculation system installed
A77: Drain_Water_Heat_Recovery | B77: No | F77: Select answer from pull-down based on requirements of Section 4.2.2.5.2.11.1, ANSI/RESNET/ICC 301-2019
A78: No_showers_connected | B78: One | F78: Select answer from pull-down based on requirements of Section 4.2.2.5.2.11.1, ANSI/RESNET/ICC 301-2019
A79: Equal_Flow | B79: No | F79: Select answer from pull-down based on requirements of Section 4.2.2.5.2.11.1, ANSI/RESNET/ICC 301-2019
A80: CSA_DWHR_eff | B80: 0.54 | F80: Enter Drain Water Heat Recovery (DWHR) efficiency percentage in accordance with CSA 55.1
A81: Landscape Design
A82: Lot_Area | B82: 10000 | C82: sq.ft. | F82: Enter total area of the Lot where the rated home is located. Can typically be obtained from a site plan.
A83: Pad_footprint_area | B83: 1400 | C83: sq.ft. | F83: Enter measured home pad footprint area
A84: Total_available_area | B84: 8600 | C84: sq.ft. | F84: Calculated in accordance with Section 5.3, Standard 850
A85: Front_area | B85: 5000 | C85: sq.ft. | F85: Enter the front-facing area in accordance with Section 5.3, Standard 850
A86: Back_area | B86: 3600 | C86: sq.ft. | F86: Calculated as Total_available_area - Front_area
A87: Is_Back_area_improved | B87: Yes | F87: Is the Back area improved in accordance with Section 5.3, Standard 850?
A88: Front_irrigation_area | B88: 3000 | C88: sq.ft. | F88: Enter ONLY the Front_irrigation_area.
A89: Back_irrigation_area | B89: 2770 | C89: sq.ft. | F89: IF Back area is improved, enter Back_irrigation_area OR if there is no Back_irrigation_area, enter 0.001
A90: Total_irrigation_area | B90: =Total_irrigation_area -> 5770 | C90: sq.ft. | F90: Calculated in accordance with Section 5.3, Standard 850
A91: Outdoor Water Features
A92: Pool_or_spa | B92: No | F92: Select 'Yes' from pull-down if pool or spa is present
A93: Irrigation_System | B93: Yes | F93: Select 'Yes' from pull-down if automatic irrigation system installed?
A94: Profession_Irr_audit | B94: No | F94: Select 'Yes' from pull-down if inspection by Certified Professional
A95: Irr_Weather_Control | B95: No | F95: Select 'Yes' from pull-down if weather-based irrigation controllers or approved soil moisture sensor-based controller
A96: Use_RICI | B96: No | F96: Select 'Yes' from pull-down if Residnetial Irrigation Capacity Index (RICI) is to be used
A97: RICI_zone_flow_rates | B97: 15 | F97: Enter the sum of all irrigation system flow rates to use RICI credits
A98: Water Cost
A99: H2O_price | B99: 5 | C99: $/CCF | F99: Enter water cost in dollars per hundred cubic feet (1 CCF = 748.05 gallons)
A100: Water Sense Mandatory Requirements
A101: WS_Pressure_loss_tests | B101: No | F101: Pressure-loss test on all water supplies detects no leaks
A102: WS_Leak_free_hot_water | B102: No | F102: Free of visible leaks from hot water delivery system
A103: WS_Leak_free_toilets | B103: No | F103: Free of visible leaks from toilet(s), as determined through visual assessment and by conducting a dye tablet test in each toilet to ensure the flapper is not leaking
A104: WS_Leak_free_bathroom_faucets | B104: No | F104: Free of visible leaks from bathroom faucet(s)
A105: WS_Leak_free_showerheads | B105: No | F105: Free of visible leaks from showerhead(s)
A106: WS_Leak_free_bathroom_tubs | B106: No | F106: Free of visible leaks from bathroom tub faucet(s), i.e., tub spout(s), when showerhead(s) is activated, as determined through visual assessment after showerhead has been activated for one minute
A107: WS_Leak_free_kitchen_faucets | B107: No | F107: Free of visible leaks from kitchen and other sink faucet(s)
A108: WS_Leak_free_other_fixtures | B108: No | F108: Free of visible leaks from other fixtures or appliances (e.g., clothes washers, dishwashers, hose bibs, irrigation systems) at point of use or point of connection to water distribution system
A109: WS_Toilets_labeled | B109: No | F109: WaterSense labeled
A110: WS_Bathroom_sink_faucets_labeled | B110: No | F110: WaterSense labeled
A111: WS_Showerheads_labeled | B111: No | F111: WaterSense labeled
A113: Results | E113: Estimated_indoor_daily_use | H113: =ROUND('HERS H2O Calculations'!G15,0) -> 133 | I113: gal/day
A114: Annual_Reference_H2O_Use | B114: =ROUND('HERS H2O Calculations'!J17*365,0) -> 151387 | C114: gal/y | E114: Estimated_indoor_daily_savings | H114: =ROUND('HERS H2O Calculations'!J15-Estimated_indoor_daily_use,0) -> 0 | I114: gal/day
A115: Annual_Rated_H2O_Use | B115: =ROUND('HERS H2O Calculations'!G17*365,0) -> 151387 | C115: gal/y | E115: Indoor_Water_Rating_Index | H115: =ROUND('HERS H2O Calculations'!G19,0) -> 100
A116: Annual_H2O_Saved | B116: =ROUND('HERS H2O Calculations'!G18*365,0) -> 0 | C116: gal/y | E116: Estimated_outdoor_daily_use | H116: =ROUND('HERS H2O Calculations'!G16,0) -> 282 | I116: gal/day
A117: Annual_H2O_Cost_Savings | B117: =ROUND('HERS H2O Calculations'!J22,2) -> 0 | C117: $/y | E117: Estimated_outdoor_daily_savings | H117: =ROUND('HERS H2O Calculations'!J16-Estimated_outdoor_daily_use,0) -> 0 | I117: gal/day
A118: Overall_Water_Rating_Index | B118: =ROUND('HERS H2O Calculations'!G21,0) -> 100 | E118: Outdoor_Water_Rating_Index | H118: =ROUND('HERS H2O Calculations'!G20,0) -> 100

Sheet Export (hidden)
B1: Excel_Version_No | C1: =Excel_Version_No -> 1.3.09
B2: ='Proj Info'!A5 -> Street_Address | C2: =Street_Address -> 124456 example Street
B3: ='Proj Info'!A6 -> Unit_ID | C3: =Unit_ID -> 1A
B4: ='Proj Info'!A7 -> City | C4: =City -> Redondo Beach
B5: ='Proj Info'!A8 -> State | C5: =State -> CA
B6: ='Proj Info'!A9 -> Zip_Code | C6: =Zip_code -> 90277
B7: ='Proj Info'!A13 -> Builder_Name | C7: =Builder_Name -> ABC Green Developments
B8: ='Proj Info'!A14 -> Rater_Name | C8: =Rater_Name -> Robert Rater
B9: ='Proj Info'!A15 -> Rater_RTIN | C9: =Rater_RTIN -> 0987654
B10: ='Proj Info'!A16 -> Rater_e-mail | C10: =Rater_e_mail -> rater@rater.com
B11: ='Proj Info'!A17 -> Site_Rating_Date | C11: =Site_Rating_Date -> 2020-02-05
B12: ='Proj Info'!A18 -> Rating_Field_Inspector_ID_No | C12: =Rating_Field_Inspector_ID_No -> RO9668
B13: ='Proj Info'!A19 -> QA_Provider_Name | C13: =QA_Provider_Name -> NewQA Associates
B14: ='Proj Info'!A20 -> QA_Provider_ID | C14: =QA_Provider_ID -> 9998-999
B15: ='Proj Info'!A21 -> QA_Provider_e-mail | C15: =QA_Provider_e_mail -> qaprovider@providerville.com
B16: ='Proj Info'!A22 -> Rating_Company | C16: =Rating_Company -> WeAreTheRatingCo, LLC.
B17: ='Proj Info'!A24 -> RESNET_HERS_Index_ID | C17: =RESNET_HERS_Index_ID -> 0
B18: ='Proj Info'!A25 -> RESNET_HERS-H2O_ID | C18: =RESNET_HERS_H2O_ID -> 0
B19: ='Proj Info'!A26 -> Conditioned_Floor_Area | C19: =Conditioned_Floor_Area -> 2400
B20: ='Proj Info'!A27 -> Number_of_bedrooms | C20: =Number_of_bedrooms -> 3
B21: ='Proj Info'!A28 -> Number_of_floors | C21: =Number_of_floors -> 2
B22: ='Proj Info'!A29 -> Basement | C22: =Basement -> No
B23: ='Proj Info'!A32 -> Pressure_tank_psi_limit | C23: =Pressure_tank_psi_limit -> No
B24: ='Proj Info'!A33 -> Pressure_regulator_psi_limit | C24: =Pressure_regulator_psi_limit -> No
B25: ='Proj Info'!A34 -> Documentation_psi | C25: =Documentation_psi -> No
B26: ='Proj Info'!A35 -> Measured_pressure | C26: =Measured_pressure -> 75
B27: ='Proj Info'!A36 -> Water_softener | C27: =Water_softener -> No
B28: ='Proj Info'!A38 -> Flush_Volume_Marker | C28: =Flush_Volume_Marker -> No
B29: ='Proj Info'!A39 -> No_single-flush_toilets | C29: =No_single_flush_toilets -> 1
B30: ='Proj Info'!A40 -> No_dual-flush_toilets | C30: =No_dual_flush_toilets -> 0
B31: ='Proj Info'!A41 -> Single-flush_volume | C31: =Single_flush_volume -> 1.6
B32: ='Proj Info'!A42 -> Dual-flush_volume | C32: =Dual_flush_volume -> 0
B33: ='Proj Info'!A43 -> Non-water-consuming | C33: =Non_water_consuming -> No
B34: ='Proj Info'!A44 -> No_non-water_toilets | C34: =No_non_water_toilets -> 0
B35: ='Proj Info'!A45 -> Shower_head_flow_rate | C35: =Shower_head_flow_rate -> 2.5
B36: ='Proj Info'!A46 -> Lavatory_faucet_efficiency | C36: =Lavatory_faucet_efficiency -> Standard
B37: ='Proj Info'!A47 -> Kitchen_sink_faucet_flow_rate | C37: =Kitchen_sink_faucet_flow_rate -> 2.2
B38: ='Proj Info'!A49 -> DW_Make | C38: =DW_Make -> WPCmake
B39: ='Proj Info'!A50 -> DW_Model | C39: =DW_Model -> WTDmodel
B40: ='Proj Info'!A51 -> DW_Capacity | C40: =DW_Capacity -> Standard
B41: ='Proj Info'!A52 -> DW_Gallons_per_cycle | C41: =DW_Gallons_per_cycle -> 8.16
B42: ='Proj Info'!A54 -> DW_Label_Energy_Rating | C42: =DW_Label_Energy_Rating -> 467
B43: ='Proj Info'!A55 -> DW_Electric_Hot_Water_Cost | C43: =DW_Electric_Hot_Water_Cost -> 56.04
B44: ='Proj Info'!A56 -> DW_Gas_Hot_Water_Costs | C44: =DW_Gas_Hot_Water_Costs -> 33.11
B45: ='Proj Info'!A57 -> DW_Electric_price | C45: =DW_Electric_price -> 0.12
B46: ='Proj Info'!A58 -> DW_Gas_price | C46: =DW_Gas_price -> 1.09
B47: ='Proj Info'!A59 -> DW_Wash_loads_per_week | C47: =DW_Wash_loads_per_week -> 4
B48: ='Proj Info'!A61 -> CW_Make | C48: =CW_Make -> XYZmake
B49: ='Proj Info'!A62 -> CW_Model | C49: =CW_Model -> X88model
B50: ='Proj Info'!A63 -> CW_Capacity | C50: =CW_Capacity -> 3
B51: ='Proj Info'!A64 -> CW_Integrated_Water_Factor | C51: =CW_Integrated_Water_Factor -> 11.4
B52: ='Proj Info'!A66 -> CW_IMEF | C52: =CW_IMEF -> 1
B53: ='Proj Info'!A67 -> CW_Label_Energy_Rating | C53: =CW_Label_Energy_Rating -> 400
B54: ='Proj Info'!A68 -> CW_Electric_Hot_Water_Cost | C54: =CW_Electric_Hot_Water_Cost -> 48
B55: ='Proj Info'!A69 -> CW_Gas_Hot_Water_Costs | C55: =CW_Gas_Hot_Water_Costs -> 27
B56: ='Proj Info'!A70 -> CW_Electric_price | C56: =CW_Electric_price -> 0.12
B57: ='Proj Info'!A71 -> CW_Gas_price | C57: =CW_Gas_price -> 1.09
B58: ='Proj Info'!A72 -> CW_Wash_loads_per_week | C58: =CW_Wash_loads_per_week -> 6
B59: ='Proj Info'!A74 -> HW_System_pipe_length | C59: =HW_System_pipe_length -> 89.28
B60: ='Proj Info'!A75 -> HW_pipe_insulated | C60: =HW_pipe_insulated -> No
B61: ='Proj Info'!A76 -> HW_recirculation | C61: =HW_recirculation -> No
B62: ='Proj Info'!A77 -> Drain_Water_Heat_Recovery | C62: =Drain_Water_Heat_Recovery -> No
B63: ='Proj Info'!A78 -> No_showers_connected | C63: =No_showers_connected -> One
B64: ='Proj Info'!A79 -> Equal_Flow | C64: =Equal_Flow -> No
B65: ='Proj Info'!A80 -> CSA_DWHR_eff | C65: =CSA_DWHR_eff -> 0.54
B66: ='Proj Info'!A82 -> Lot_Area | C66: =Lot_Area -> 10000
B67: ='Proj Info'!A83 -> Pad_footprint_area | C67: =Pad_footprint_area -> 1400
B68: ='Proj Info'!A84 -> Total_available_area | C68: =Total_available_area -> 8600
B69: ='Proj Info'!A85 -> Front_area | C69: =Front_area -> 5000
B70: ='Proj Info'!A86 -> Back_area | C70: =Back_area -> 3600
B71: ='Proj Info'!A87 -> Is_Back_area_improved | C71: =Is_Back_area_improved -> Yes
B72: ='Proj Info'!A88 -> Front_irrigation_area | C72: =Front_irrigation_area -> 3000
B73: ='Proj Info'!A89 -> Back_irrigation_area | C73: =Back_irrigation_area -> 2770
B74: ='Proj Info'!A90 -> Total_irrigation_area | C74: =Total_irrigation_area -> 5770
B75: ='Proj Info'!A92 -> Pool_or_spa | C75: =Pool_or_spa -> No
B76: ='Proj Info'!A93 -> Irrigation_System | C76: =Irrigation_System -> Yes
B77: ='Proj Info'!A94 -> Profession_Irr_audit | C77: =Profession_Irr_audit -> No
B78: ='Proj Info'!A95 -> Irr_Weather_Control | C78: =Irr_Weather_Control -> No
B79: ='Proj Info'!A96 -> Use_RICI | C79: =Use_RICI -> No
B80: ='Proj Info'!A97 -> RICI_zone_flow_rates | C80: =RICI_zone_flow_rates -> 15
B81: ='Proj Info'!A99 -> H2O_price | C81: =H2O_price -> 5
B82: ='Proj Info'!A101 -> WS_Pressure_loss_tests | C82: =WS_Pressure_loss_tests -> No
B83: ='Proj Info'!A102 -> WS_Leak_free_hot_water | C83: =WS_Leak_free_hot_water -> No
B84: ='Proj Info'!A103 -> WS_Leak_free_toilets | C84: =WS_Leak_free_toilets -> No
B85: ='Proj Info'!A104 -> WS_Leak_free_bathroom_faucets | C85: =WS_Leak_free_bathroom_faucets -> No
B86: ='Proj Info'!A105 -> WS_Leak_free_showerheads | C86: =WS_Leak_free_showerheads -> No
B87: ='Proj Info'!A106 -> WS_Leak_free_bathroom_tubs | C87: =WS_Leak_free_bathroom_tubs -> No
B88: ='Proj Info'!A107 -> WS_Leak_free_kitchen_faucets | C88: =WS_Leak_free_kitchen_faucets -> No
B89: ='Proj Info'!A108 -> WS_Leak_free_other_fixtures | C89: =WS_Leak_free_other_fixtures -> No
B90: ='Proj Info'!A109 -> WS_Toilets_labeled | C90: =WS_Toilets_labeled -> No
B91: ='Proj Info'!A110 -> WS_Bathroom_sink_faucets_labeled | C91: =WS_Bathroom_sink_faucets_labeled -> No
B92: ='Proj Info'!A111 -> WS_Showerheads_labeled | C92: =WS_Showerheads_labeled -> No
B93: ='Proj Info'!A114 -> Annual_Reference_H2O_Use | C93: =Annual_Reference_H2O_Use -> 151387
B94: ='Proj Info'!A115 -> Annual_Rated_H2O_Use | C94: =Annual_Rated_H2O_Use -> 151387
B95: ='Proj Info'!A116 -> Annual_H2O_Saved | C95: =Annual_H2O_Saved -> 0
B96: ='Proj Info'!A117 -> Annual_H2O_Cost_Savings | C96: =Annual_H2O_Cost_Savings -> 0
B97: ='Proj Info'!A118 -> Overall_Water_Rating_Index | C97: =Overall_Water_Rating_Index -> 100
B98: ='Proj Info'!E113 -> Estimated_indoor_daily_use | C98: =Estimated_indoor_daily_use -> 133
B99: ='Proj Info'!E114 -> Estimated_indoor_daily_savings | C99: =Estimated_indoor_daily_savings -> 0
B100: ='Proj Info'!E115 -> Indoor_Water_Rating_Index | C100: =Indoor_Water_Rating_Index -> 100
B101: ='Proj Info'!E116 -> Estimated_outdoor_daily_use | C101: =Estimated_outdoor_daily_use -> 282
B102: ='Proj Info'!E117 -> Estimated_outdoor_daily_savings | C102: =Estimated_outdoor_daily_savings -> 0
B103: ='Proj Info'!E118 -> Outdoor_Water_Rating_Index | C103: =Outdoor_Water_Rating_Index -> 100

Sheet HERS H2O Calculations (hidden)
A1: HERSH2O Calculation Spreadsheet | AA1: https://api-v3.resnet.us/api/submitExcelH2ORating?code=8hHFra1s/SCEMdscPms3BmXtBW60daPcFp9juYuqldBO4pcq3eAVEw==
AA2: MIIBCgKCAQEAw5p4PO8tL54CpJhziVirP0BnjqzlBEXRDGUMLFebjP8Q5ANCQoUX | AB2: X1UtZREltplADAdm5+J0Gb1GtBTN1PT4odFqUeLpLMR5nUcO9TM3TCn1yTLP6R8V | AC2: QuEHylFpOscgqLvb0n6n1lpAu4F3Fj4Wqagx+ndSBknJxZupNS8cvgGK5Q4CQ1oZ | AD2: 9z+zHwNaD7TAsE6Qs0M6qOIPYOYR3MJtCohEPZCNmJG1viTvQlYs5yNocXF2aVs9 | AE2: gxjYb383G7XPnLQxOk0cTJos16TAPKMHRv9dhLevusTuYfkjttrNNkUrXuKMfyXA | AF2: JRR8x1fEHUNP7wjUA1m5Q/crKCP4mqFLfQIDAQAB
E3: Rated Home | H3: Reference Home
A4: U.S. postal zip code | B4: =Zip_code -> 90277 | D4: Water Use | E4: Cold Wtr | F4: Hot Wtr | G4: Total Wtr | H4: Cold Wtr | I4: Hot Wtr | J4: Total Wtr | K4: Home characteristics: | M4: Drain Water Heat Recovery: | P4: Table 4.2.2.5.2.11(1) Hot water fixture effectiveness | T4: Pull down lists:
A5: State: | B5: =VLOOKUP(Zip_code,Climate!$A$2:$I$32481,6,FALSE) -> California | D5: Shower_gpd | E5: =G5-F5 -> 8.555595027 | F5: =FixtureHot*shower_pc*SHeff -> 15.52840497 | G5: =FixtureTot*shower_pc*SHeff -> 24.084 | H5: =J5-I5 -> 8.555595027 | I5: =refFixtureHot*shower_pc -> 15.52840497 | J5: =refFixtureTot*shower_pc -> 24.084 | K5: CFA | L5: =IF('Proj Info'!B26=0,NA(),'Proj Info'!B26) -> 2400 | M5: Showers connected | N5: =IF('Proj Info'!B77="Yes",IF('Proj Info'!B78="Multiple","all",IF('Proj Info'!B78="One","one",#N/A)),#N/A) ->  | P5: Plumbing Fixture Description | Q5: Feff | T5: sys type | U5: fix eff | V5: P-insul | W5: WH Type | X5: Eq. Flow? | Y5: #DWHRU | Z5: Y/N
A6: TMY weather station: | B6: =VLOOKUP(Zip_code,Climate!$A$2:$I$32481,8,FALSE) -> Jack Northrop Fld H | D6: KitchF_gpd | E6: =G6-F6 -> 5.028788632 | F6: =kitch*FixtureHot*faucet_pc*KitchFeff -> 9.127251368 | G6: =kitch*FixtureTot*faucet_pc*KitchFeff -> 14.15604 | H6: =J6-I6 -> 5.028788632 | I6: =kitch*refFixtureHot*faucet_pc -> 9.127251368 | J6: =kitch*refFixtureTot*faucet_pc -> 14.15604 | K6: Nbr | L6: =IF('Proj Info'!B27=0,NA(),'Proj Info'!B27) -> 3 | M6: Equal flow? | N6: =IF('Proj Info'!B77="Yes",IF('Proj Info'!B79="Yes","yes",IF('Proj Info'!B79="No","no",#N/A)),#N/A) ->  | P6: std | Q6: 1 | T6: std | U6: std | V6: none | W6: gas | X6: no | Y6: all | Z6: yes
A7: System Inputs: | D7: LavF_gpd | E7: =G7-F7 -> 2.259310835 | F7: =lav*FixtureHot*faucet_pc*LavFeff -> 4.100649165 | G7: =lav*FixtureTot*faucet_pc*LavFeff -> 6.35996 | H7: =J7-I7 -> 2.259310835 | I7: =lav*refFixtureHot*faucet_pc -> 4.100649165 | J7: =lav*refFixtureTot*faucet_pc -> 6.35996 | K7: Nfl | L7: =IF('Proj Info'!B28=0,NA(),'Proj Info'!B28) -> 2 | M7: CSA 55.1 DWHReff | N7: =IF('Proj Info'!B77="Yes",'Proj Info'!B80,0) -> 0 | P7: low | Q7: 0.95 | T7: re, none | U7: low-flow | V7: R-3 | W7: elec | X7: yes | Y7: one | Z7: no
A8: Distribution system | B8: =IF('Proj Info'!B76="No","std","re, none") -> std | D8: Waste_gpd | E8: =F_eff*(oWgpd+sWgpd*WDeff)*(1-Fmix)*adjFmix/Fmix -> 5.583542369 | F8: =F_eff*(oWgpd+sWgpd*WDeff)*adjFmix -> 10.1341294 | G8: =E8+F8 -> 15.71767177 | H8: =(refoWgpd+refsWgpd)*(1-Fmix) -> 5.583542369 | I8: =(refoWgpd+refsWgpd)*Fmix -> 10.1341294 | J8: =H8+I8 -> 15.71767177 | K8: Bsmt | L8: =IF('Proj Info'!B29="Yes",1,0) -> 0 | M8: Tmains = | N8: =Tavg+Tmains_offset -> 68.7 | T8: re, temp
A9: HW pipe Insulation | B9: =IF('Proj Info'!B75="yes","R-3","none") -> none | D9: CW_gpd | E9: =G9-F9 -> 24.0243486 | F9: =CWgpd -> 4.413185652 | G9: =IF(B80=0,B80/B80,CW_Capacity*CW_IWF*CW_ACY/365) -> 28.43753425 | H9: =J9-I9 -> 24.02423425 | I9: =refCWgpd -> 4.4133 | J9: =refCWtotgpd -> 28.43753425 | K9: Appliances: | M9: WHinTadj = | N9: =IF($B$17="yes",Ifrac*(DWHRinT-Tmains)*DWHReff*PLC*LocF*FixF,0) -> 0 | P9: Table 4.2.2.5.2.11(2) Hot Water Distribution Factors | T9: re, dmd
A10: Shower (gpm) | B10: =Shower_head_flow_rate -> 2.5 | D10: DW_gpd | F10: =DWgpd -> 4.314739726 | G10: =DWgpd -> 4.314739726 | I10: =refDWgpd -> 4.31591726 | J10: =refDWgpd -> 4.31591726 | K10: DWgpc | L10: =B74 -> 8.16 | M10: WHinT = | N10: =IF($B$17="no",Tmains,Tmains+WHinTadj) -> 68.7 | P10: System type | Q10: none | R10: R-3 | T10: re, man
A11: Kitch Faucet (gpm) | B11: =Kitchen_sink_faucet_flow_rate -> 2.2 | D11: Toilets_gpd | E11: =G11-F11 -> 21.8968 | G11: =refFPO*gpf*Occ -> 21.8968 | H11: =J11-I11 -> 21.8968 | J11: =refFPO*refGPF*Occ -> 21.8968 | K11: CWgpd | L11: std | P11: std | Q11: 1 | R11: 0.9
A12: Lav Faucet efficiency | B12: =IF('Proj Info'!B46="Standard","std",IF('Proj Info'!B46="Low-flow","low-flow","std")) -> std | D12: Soft_gpd | E12: =Soft_gpd -> 0 | G12: =Soft_gpd -> 0 | H12: =refSofgpd -> 0 | J12: =refSofgpd -> 0 | K12: CW_IWF | L12: =CW_IWF -> 11.4 | P12: re, none | Q12: 1.11 | R12: 1 | T12: cWash | U12: CAPw | V12: LER | W12: $/kWh | X12: $/therm | Y12: AGC | Z12: WF
A13: Std sys pipe length | B13: =HW_System_pipe_length -> 89.28 | D13: Other_gpd | E13: =G13-F13 -> 15.7 | F13: =HotOther_br*Nbr -> 2.1 | G13: =TotOther_br*Nbr -> 17.8 | H13: =J13-I13 -> 15.7 | I13: =HotOther_br*Nbr -> 2.1 | J13: =TotOther_br*Nbr -> 17.8 | K13: Toilets: | P13: re, temp | Q13: 1.11 | R13: 1 | T13: std | U13: 2.874 | V13: 704 | W13: 0.0803 | X13: 0.58 | Y13: 23 | Z13: 9.5
A14: Recirc sys loop length | B14: =loopL -> 158.56 | D14: EP_gpd | E14: =IF(Static_Pressure>90,(E5+0.5*(E6+E7+E13))*(0.006*(Static_Pressure-90)),0) -> 0 | F14: =IF(Static_Pressure>90,(F5+0.5*(F6+F7+F13))*(0.006*(Static_Pressure-90)),0) -> 0 | G14: =IF(Static_Pressure>90,(G5+0.5*(G6+G7+G13))*(0.006*(Static_Pressure-90)),0) -> 0 | H14: 0 | I14: 0 | J14: 0 | K14: gpf | L14: =(Single_flush_volume*No_single_flush_toilets+Dual_flush_volume*No_dual_flush_toilets)/(No_single_flush_toilets+No_dual_flush_toilets+No_non_water_toilets) -> 1.6 | P14: re, dmd | Q14: 1.11 | R14: 1 | T14: 2008 | U14: 3.2 | V14: 487 | W14: 0.0803 | X14: 0.688 | Y14: 23 | Z14: 8
A15: Recirc sys branch length | B15: 10 | D15: Indoor_gpd | E15: =G15-F15 -> 83.04838546 | F15: =SUM(F5:F14) -> 49.71836028 | G15: =SUM(G5:G14) -> 132.7667457 | H15: =J15-I15 -> 83.04827111 | I15: =SUM(I5:I14) -> 49.71965217 | J15: =SUM(J5:J14) -> 132.7679233 | K15: No. non-water | L15: =IF('Proj Info'!B43="Yes",'Proj Info'!B44,0) -> 0 | P15: re, man | Q15: 1.11 | R15: 1 | T15: e-Star | U15: 3.5 | V15: 281 | W15: 0.086 | X15: 0.91 | Y15: 14 | Z15: 6
A16: Recirc pumpWatts | B16: 50 | D16: Outdoor_gpd | E16: =Out_gpd -> 281.9916613 | F16: 0 | G16: =Out_gpd -> 281.9916613 | H16: =OutRef_gpd -> 281.9916613 | I16: 0 | J16: =OutRef_gpd -> 281.9916613 | K16: Water Softener: | T16: BestAv | U16: 3.31 | V16: 151 | W16: 0.1065 | X16: 1.218 | Y16: 12 | Z16: 4
A17: DW heat recovery? | B17: =IF('Proj Info'!B77="Yes","yes","no") -> no | D17: Total_gpd | E17: =SUM(E15:E16) -> 365.0400468 | F17: 49.71836028 | G17: 414.7584071 | H17: 365.0399324 | I17: 49.71965217 | J17: 414.7595846 | K17: Softener | L17: =IF('Proj Info'!B36="Yes","yes","no") -> no | P17: Table 4.2.2.5.2.11(3) Distribution system water use effectiveness
A18: Landscape Design: | D18: Save_Tot = | E18: =H17-E17 -> -0.000114348428 | F18: =I17-F17 -> 0.001291882675 | G18: =J17-G17 -> 0.001177534247 | H18: na | I18: na | J18: na | K18: gal/removed | L18: =B42 -> 5 | M18: gallons/1,000 grains removed | P18: Distribution System Description | Q18: none | T18: dWash | U18: dWcap | V18: DW_EF
A19: Lot Area (ft2) | B19: =Lot_Area -> 10000 | D19: H2O_in = | E19: =ColdW_gpd/H15*100 -> 100.0001377 | F19: =F15/I15*100 -> 99.99740167 | G19: =G15/J15*100 -> 99.99911309 | H19: na | I19: na | J19: na | K19: Outdoors: | P19: Std | Q19: 1 | T19: std | U19: 12 | V19: 0.46
A20: Total Available Area (ft2) | B20: =Lot_Area-Pad_footprint_area -> 8600 | D20: H2O_Out = | E20: =E16/H16*100 -> 100 | F20: =100 -> 100 | G20: =G16/J16*100 -> 100 | H20: na | I20: na | J20: na | K20: Inground Pool? | L20: =IF('Proj Info'!B92="Yes","yes","no") -> no | P20: re, none | Q20: 0.1 | T20: e-Star | U20: 12 | V20: 0.73
A21: Front Area (ft2) | B21: =Front_area -> 5000 | D21: H2O_Tot = | E21: =E17/H17*100 -> 100.0000313 | F21: =F17/I17*100 -> 99.99740167 | G21: =G17/J17*100 -> 99.99971609 | H21: na | I21: na | J21: na | K21: Automatic Irrigation? | L21: =IF('Proj Info'!B93="Yes","yes","no") -> yes | P21: re, temp | Q21: =Q20 -> 0.1 | T21: BestAv | U21: 12 | V21: 1.12
A22: Back Area (ft2) | B22: =Total_available_area-Front_area -> 3600 | E22: HERSH2O = | F22: =G21 -> 99.99971609 | G22: H2Osave* = | H22: =G18*365 -> 0.4298 | I22: $save** = | J22: =IF(H22*L27<L27,0,H22/748.05*L27) -> 0 | K22: Smart/weather-based controller? | L22: =IF('Proj Info'!B95="Yes","yes","no") -> no | M22: (optional field) | P22: re, dmd | Q22: =Q20 -> 0.1
A23: Front Irr Area (ft2) | B23: =Front_irrigation_area -> 3000 | E23: =SUM(E5:E14) -> 83.04838546 | F23: =SUM(F5:F14) -> 49.71836028 | G23: * Gallons per year | I23: ** $ per year | K23: Use RICI? | L23: =IF('Proj Info'!B96="Yes","yes","no") -> no | M23: (optional field) | P23: re, man | Q23: =Q20 -> 0.1
A24: Pred Back Irr Area (ft2) | B24: =ROUND(Back_area/Total_available_area*Ref_Irr_Area,0) -> 2415 | E24: % Outdoor H2O = | F24: =G16/G17 -> 0.6798937804 | G24: =E23+F23 -> 132.7667457 | H24: =SUM(H5:H14) -> 83.04827111 | I24: =SUM(I5:I14) -> 49.71965217 | J24: =H24+I24 -> 132.7679233 | K24: Zone flow rates | L24: =RICI_zone_flow_rates -> 15 | M24: Sum of irrigation zones (optional field)
A25: Total Irrigation Area (ft2) | B25: =IF(Is_Back_area_improved="No",ROUND(Pred_Back_Irr_Area/Total_available_area*Ref_Irr_Area+Front_irrigation_area,0),IF(Back_irrigation_area>0,Front_irrigation_area+Back_irrigation_area,"ERROR")) -> 5770 | E25: Ref_Irr_Area = | F25: =Ref_Irr_Area -> 5770 | K25: Prof Audit? | L25: =IF('Proj Info'!B94="Yes","yes","no") -> no | M25: (optional field)
E26: Tot_Ref_Irr_ratio = | F26: =Ref_Irr_Area/Lot_Area -> 0.577 | K26: Static Pressure | L26: =IF('Proj Info'!B32="Yes",90,IF('Proj Info'!B33="Yes",90,IF('Proj Info'!B34="Yes",90,IF('Proj Info'!B35>29,'Proj Info'!B35,#N/A)))) -> 75
A27: Ref std sys pipe length = | B27: =ROUND(2*(CFA/Nfl)^0.5+10*Nfl+5*Bsmt,2) -> 89.28 | E27: Net_Lscape_ratio = | F27: =Total_irrigation_area/(Lot_Area-(CFA/Nfl)) -> 0.6556818182 | K27: H2O Price | L27: =H2O_price -> 5 | M27: $/CCF (1 CCF = 748.05 gallons)
A28: Ref recirc sys loop length = | B28: =2*refPipeL-20 -> 158.56 | E28: Lot size (acres) = | F28: =Lot_Area/43560 -> 0.2295684114
P29: Table 4.2.2.5.2.11(4) Location factors for DWHRU placement
P30: DWHR Placement | Q30: LocF
A31: OutRef_gpd = | B31: =IF(H39+H46>=F34,H39+H46,IF(Total_irrigation_area<Ref_Irr_Area,F34/H40,F$34)) -> 281.9916613 | C31: gal/day | E31: Ref_Irr_Area | G31: Irr_Area | P31: both the fixture and water heater | Q31: 1
A32: Ref_Irr_Area = | B32: =IF(Lot_Area<7000,Lot_Area*(0.002479*Lot_Area^0.6157),Lot_Area*0.577) -> 5770 | E32: expAref = | F32: =EXP(1.4416+0.5069*(Ref_Irr_Area/10^3)) -> 78.7606101 | G32: expA = | H32: =EXP(1.4416+0.5069*(Total_irrigation_area/10^3)) -> 78.7606101 | P32: only the water heater | Q32: 0.777
A33: NetET (inches) = | B33: =VLOOKUP(Zip_code,Climate!$A$2:$D$32481,2,FALSE) -> 42.29588 | E33: expBref = | F33: =EXP(0.6911+0.00301*NetET*(Ref_Irr_Area/10^3)) -> 4.160695114 | G33: expB = | H33: =EXP(0.6911+0.00301*NetET*(Total_irrigation_area/10^3)) -> 4.160695114 | P33: only the fixture | Q33: 0.777
A34: Sprink_ind = | B34: =IF(L21="no",0,1) -> 1 | E34: OutRef_gpd = | F34: =IF(NetET<=12,((expAref/(1+expAref))*1.18086*(2.0341*NetET^(0.7154)*(Ref_Irr_Area/10^3)^(0.6227)+0.5756*pool_ind*NetET)*1+(expBref/(1+expBref))*1.22257*(1.4233+0.6311*NetET+0.9376*(Ref_Irr_Area/10^3))*(1-1))*10^3/365, ((expAref/(1+expAref))*1.18086*(2.0341*NetET^(0.7154)*(Ref_Irr_Area/10^3)^(0.6227)+0.5756*pool_ind*NetET)*sprink_ind+(expBref/(1+expBref))*1.22257*(1.4233+0.6311*NetET+0.9376*(Ref_Irr_Area/10^3))*(1-sprink_ind))*10^3/365) -> 281.9916613 | G34: Out_gpd = | H34: =((expA/(1+expA))*1.18086*(2.0341*NetET^(0.7154)*(Total_irrigation_area/10^3)^(0.6227)+0.5756*pool_ind*NetET)*sprink_ind+(expB/(1+expB))*1.22257*(1.4233+0.6311*NetET+0.9376*(Total_irrigation_area/10^3))*(1-sprink_ind))*10^3/365 -> 281.9916613
A35: Pool_ind = | B35: =IF(L20="no",0,1) -> 0 | F35: =((expAref/(1+expAref))*1.18086*(2.0341*NetET^(0.7154)*(Ref_Irr_Area/10^3)^(0.6227)+0.5756*1*NetET)*1+(expBref/(1+expBref))*1.22257*(1.4233+0.6311*NetET+0.9376*(Ref_Irr_Area/10^3))*(1-1))*10^3/365 -> 359.7675536 | H35: =((expA/(1+expA))*1.18086*(2.0341*NetET^(0.7154)*(Total_irrigation_area/10^3)^(0.6227)+0.5756*1*NetET)*1+(expB/(1+expB))*1.22257*(1.4233+0.6311*NetET+0.9376*(Total_irrigation_area/10^3))*(1-1))*10^3/365 -> 359.7675536 | I35: with both indicaters set to 1 | P35: Table 4.2.2.5.2.11(5) Annual electricity consumption for hot water recirculation system pumps
A36: RICI_Rat= | B36: =IF(L23="yes",IF(Total_irrigation_area>0,(((L24+0.005*Back_irrigation_area)/Total_irrigation_area)*1000),5),RICI_Ref) -> 5 | F36: =((expAref/(1+expAref))*1.18086*(2.0341*NetET^(0.7154)*(Ref_Irr_Area/10^3)^(0.6227)+0.5756*0*NetET)*1+(expBref/(1+expBref))*1.22257*(1.4233+0.6311*NetET+0.9376*(Ref_Irr_Area/10^3))*(1-1))*10^3/365 -> 281.9916613 | H36: =((expA/(1+expA))*1.18086*(2.0341*NetET^(0.7154)*(Total_irrigation_area/10^3)^(0.6227)+0.5756*0*NetET)*1+(expB/(1+expB))*1.22257*(1.4233+0.6311*NetET+0.9376*(Total_irrigation_area/10^3))*(1-1))*10^3/365 -> 281.9916613 | I36: with pool indicator set to 0 and sprinkler indicator set to 1 | P36: Recirculation System Description | Q36: Efact
A37: RICI_Ref= | B37: 5 | F37: =F35-F36 -> 77.77589226 | H37: =H35-H36 -> 77.77589226 | I37: difference for pool | P37: re, none | Q37: 8.76
A38: Out_gpd = | B38: =SUM(H45:H46) -> 281.9916613 | F38: =F34+F37 -> 359.7675536 | H38: =H34+H37 -> 359.7675536 | I38: without sprinkler but with pool | P38: re, temp | Q38: 1.46
F39: =((expAref/(1+expAref))*1.18086*(2.0341*NetET^(0.7154)*(Ref_Irr_Area/10^3)^(0.6227)+0.5756*0*NetET)*0+(expBref/(1+expBref))*1.22257*(1.4233+0.6311*NetET+0.9376*(Ref_Irr_Area/10^3))*(1-0))*10^3/365 -> 90.53628235 | H39: =((expA/(1+expA))*1.18086*(2.0341*NetET^(0.7154)*(Total_irrigation_area/10^3)^(0.6227)+0.5756*0*NetET)*0+(expB/(1+expB))*1.22257*(1.4233+0.6311*NetET+0.9376*(Total_irrigation_area/10^3))*(1-0))*10^3/365 -> 90.53628235 | I39: with both indicaters set to 0 | P39: re, dmd | Q39: 0.15
A40: Hardness_value(mg/liter) | B40: =VLOOKUP(Zip_code,Climate!$A$2:$D$32481,3,FALSE) -> 180 | H40: =(H39/F39) -> 1 | I40: maximum reduction to reference for landscaped area | P40: re, man | Q40: 0.1
A41: 1,000 Grains/year_ref | B41: =(((B40*0.0584178)*((refDWgpd+(2.874*Z14*(177.12+50.22*Nbr)/365)+refFgpd+refWgpd+refGPF*refFPO*Occ+TotOther_br*Nbr)))*365)*10^-3 -> 479.6711119 | H41: =IF(H34>H39,H34,H39) -> 281.9916613 | I41: base outdoor GPD
A42: gal/1kgrains_ref | B42: 5 | H42: =IF(AND(L21="yes",L22="yes"),H41*0.85,H41) -> 281.9916613 | I42: adjust for smart controller
A43: refSofgpd | B43: =IF(L17="yes",IF(B40>=181,(B41*B42)/365,0),0) -> 0 | H43: =IF(AND(L21="yes",L23="yes"),H42*(1+((RICI_Rat-RICI_Ref)*0.1)),H42) -> 281.9916613 | I43: adjust for RICI
A44: 1,000 Grains/year_rate | B44: =(B40*0.0584178)*((SUM(G5:G11,G13)*365))*10^-3 -> 509.5653368 | H44: =IF(AND(L21="yes",L25="yes"),H43*0.95,H43) -> 281.9916613 | I44: adjust for audit | P44: Table 4.2.2.5.2.11(6) Hot water distribution system annual energy delivery effectiveness
A45: Soft_gpd | B45: =IF(L17="yes",B44*L18/365,0) -> 0 | H45: =H44 -> 281.9916613 | I45: adjusted base outdoor contribution | P45: Distribution System Description | Q45: none | R45: R-3
H46: =IF(AND(L20="yes",L21="no"),H37,0) -> 0 | I46: pool contibution | P46: std | Q46: 32 | R46: 28.8
P47: re, none | Q47: =R47*2 -> 500 | R47: 250
P48: re, temp | Q48: =R48*2 -> 375 | R48: 187.5
P49: re, dmd | Q49: =R49*1.5 -> 64.8 | R49: 43.2
P50: re, man | Q50: =R50*1.5 -> 43.2 | R50: 28.8
A51: Other named variables:
A52: Leaks: | G52: =adjFmix/Fmix -> 1
A53: HotOther_br = | B53: =2.1/3 -> 0.7 | J53: Tmains_offset | K53: 6.4
A54: TotOther_br = | B54: =17.8/3 -> 5.933333333 | D54: refToilets: | F54: Fixture Splits: | H54: Dist. System: | J54: Operational Factors:
A55: Clothes washers & dishwashers: | D55: refGPF = | E55: 1.6 | F55: FixtureHot | G55: =adjFmix*refFgpd*VintFact -> 28.75630551 | H55: Occ = | I55: =1.09+0.54*Nbr -> 2.71 | J55: VintFact = | K55: 1
A56: refDWgpd = | B56: =((88.4+34.9*Nbr)*8.158)/365 -> 4.31591726 | D56: refFPO= | E56: 5.05 | F56: FixtureTot | G56: =(adjFmix/Fmix)*refFgpd*VintFact -> 44.6 | H56: WDeff = | I56: =VLOOKUP($B$8,$P$19:$Q$23,2,0) -> 1 | J56: oFrac | K56: 0.25
A57: DWgpd = | B57: =B73 -> 4.314739726 | D57: Water use: | F57: sh_ref_gpm | G57: 2.5 | H57: DWHReff = | I57: =IF($B$10>=2,$N$7,$N$7*1.082) -> 0 | J57: oCDeff = | K57: 0
A58: refCWgpd = | B58: =ref_hotCWgpd -> 4.4133 | D58: Tavg = | E58: =VLOOKUP(Zip_code,Climate!$A$2:$D$32481,4,FALSE) -> 62.3 | F58: shower_pc | G58: 0.54 | H58: DWHR systems:
A59: CWgpd = | B59: =B93 -> 4.413185652 | D59: Tset = | E59: 125 | F59: faucet_pc | G59: =1-shower_pc -> 0.46 | H59: DWHRinT = | I59: =Tuse-8 -> 97
A60: Dishwasher Calcs: | D60: Tuse = | E60: 105 | F60: Kitch_pc | G60: =faucet_pc*kitch -> 0.3174 | H60: Ifrac = | I60: =0.56 + 0.015*Nbr - 0.0004*Nbr^2 -> 0.6014 | J60: Ifrac= 0.56 + 0.015*Nbr - 0.0004*Nbr^2
A61: DW_type | B61: ='Proj Info'!B51 -> Standard | D61: KitchFeff = | E61: =(B11)/(kitch_Ref_gpm) -> 1 | F61: Lav_pc | G61: =faucet_pc*lav -> 0.1426 | H61: LocF = | I61: =IF($N$6=$X$7,1,0.777) -> 
A62: dWcap | B62: =IF(B61="Standard",12,IF(B61="Compact",8,12)) -> 12 | D62: LavFeff = | E62: =IF($B$12="std",$Q$6,$Q$7) -> 1 | F62: SHeff = | G62: =(Shower_head_flow_rate)/(Sh_ref_gpm) -> 1 | H62: FixF = | I62: =IF($N$5=$Y$6,1,0.5) -> 
A63: label_kWh (LER) | B63: =DW_LER -> 467 | D63: Fmix = | E63: =1-((Tset-Tuse)/(Tset-(Tmains))) -> 0.6447602131 | F63: kitch | G63: 0.69 | H63: PLC = | I63: =1-PLCfact*pLength -> 0.998
A64: label_EHWC | B64: =DW_EHWC -> 56.04 | D64: adjFmix = | E64: =1-((Tset-Tuse)/(Tset-Tmains-WHinTadj)) -> 0.6447602131 | F64: lav | G64: =1-kitch -> 0.31 | H64: PLCfactor = | I64: 0.0002
A65: label_GHWC | B65: =DW_GHWC -> 33.11 | D65: refWgpd = | E65: =9.8*Nbr^0.43 -> 15.71767177 | F65: kitch_ref_gpm | G65: 2.2 | H65: Piping:
A66: label elec_price | B66: =DW_elecPrice -> 0.12 | D66: refFgpd = | E66: =14.6 + 10*Nbr -> 44.6 | F66: F_eff = | G66: =SHeff*shower_pc+KitchFeff*Kitch_pc+LavFeff*Lav_pc -> 1 | H66: pRatio = | I66: =IF($B$8=$T$6,HW_System_pipe_length/refPipeL,branchL/10) -> 1
A67: label gas_price | B67: =DW_gasPrice -> 1.09 | D67: Operational: | F67: refFixtureHot= | G67: =Fmix*refFgpd*VintFact -> 28.75630551 | H67: sysFactor = | I67: =IF($B$9=$V$6,VLOOKUP($B$8,$P$11:$R$15,2,0),VLOOKUP($B$8,$P$11:$R$15,3,0)) -> 1 | J67: nWgpd = 9.8*Nbr^0.43
A68: DW_LCY | B68: =DW_Loads*52 -> 208 | D68: oWgpd = | E68: =refWgpd*oFrac*(1-oCDeff) -> 3.929417943 | F68: refFixtureTot= | G68: =refFgpd*VintFact -> 44.6 | H68: pLength = | I68: =IF($B$8=$T$7,HW_System_pipe_length,branchL) -> 10 | J68: nFgpd = 14.6 + 10.0*Nbr
A69: DW_elec_h2o | B69: 0.02504 | D69: sWgpd = | E69: =(refWgpd-refWgpd*oFrac)*pRatio*sysFactor -> 11.78825383 | H69: HERS calcs:
A70: DW_gas_h2o | B70: 0.5497 | D70: oEWfact = | E70: =IF(B9="none",VLOOKUP(B8,P46:R50,2,0)*oFrac,VLOOKUP(B8,P46:R50,3,0)*oFrac) -> 8 | H70: gdp_ratio = | I70: =HWgpd/(30+10*Nbr) -> 0.8286393381
A71: DWkWh_cyc | B71: =IF(AND(B63>0,B64>0,B65>0,B66>0,B67>0), (B65*B70/B67-B63*B66*DW_elec_h2o/B66)/(B66*B70/B67-DW_elec_h2o)/B68,NA()) -> 0.6781244878 | D71: sEWfact = | E71: =IF(B9="none",VLOOKUP($B$8,$P$46:$R$50,2,0),VLOOKUP($B$8,$P$46:$R$50,3,0))-oEWfact -> 24
A72: DW_ACY | B72: =ROUND((88.4+34.9*Nbr)*12/B62,0) -> 193 | D72: refoWgpd= | E72: =refWgpd*oFrac*(1-oCDeff) -> 3.929417943
A73: DWgpd | B73: =IF('Proj Info'!B52>0,'Proj Info'!B52*DW_ACY/365,(DW_LER-DWkWh_cyc*DW_LCY)*DW_elec_h2o*DW_ACY/365) -> 4.314739726 | D73: refsWgpd= | E73: =(refWgpd-refWgpd*oFrac) -> 11.78825383
A74: DWgpc | B74: =B73*365/DW_ACY -> 8.16
A75: Clothes Washer Calcs:
A76: Total Water:
A77: refCW_ACY | B77: =164+46.5*Nbr -> 303.5
A78: refCWtotgpd | B78: =3*11.4*refCW_ACY/365 -> 28.43753425
A79: CW_ACY | B79: =(164+46.5*Nbr)*((3*2.08+1.59)/(CW_Capacity*2.08+1.59)) -> 303.5
A80: CWgdp | B80: =CW_Capacity*CW_IWF*CW_ACY/365 -> 28.43753425
A81: Hot Water:
A82: label_kWh (LER) | B82: =CW_Label_Energy_Rating -> 400
A83: label_EHWC | B83: =CW_Electric_Hot_Water_Cost -> 48
A84: label_GHWC | B84: =CW_Gas_Hot_Water_Costs -> 27
A85: label elec_price | B85: =CW_Electric_price -> 0.12
A86: label gas_price | B86: =CW_Gas_price -> 1.09
A87: CW_LCY | B87: =CW_Wash_loads_per_week*52 -> 312
A88: CW_elec_h2o | B88: 0.0178
A89: CW_gas_h2o | B89: 0.3914
A90: Appl_kWh | B90: =(B84*CW_gas_h2o/B86-B82*B85*CW_elec_h2o/B85)/(B85*CW_gas_h2o/B86-CW_elec_h2o) -> 101.8283393
A91: CW_HWkWh | B91: =B82-B90 -> 298.1716607
A92: CW_HWgpc | B92: =CW_HWkWh*CW_elec_h2o -> 5.307455561
A93: hotCWgpd | B93: =CW_HWgpc*CW_ACY/365 -> 4.413185652
A94: ref_hotCWgpd | B94: =0.6762*Nbr+2.3847 -> 4.4133
B125: UZgnxQptk8vYD8aMEHTVupHpZjRnFwQyBItmX9neWXKohnT4e725ewRBVHuX+fkY84F6QmiRvDBc6nNgSvqcusdLqwWyMultqY9XHX3ckNlaBdS4L1+Ar//9xEAY/hhJPNxygQXjTcyNT1Zkait4qzKSdk0F7m2DNsei8xJtzDnz7QqcKMPeZMfVIr9ifhbJYGoNTxWFVs461P0uDI0YXDXeUS0T9PKNk5MZF6+VKb0tO4UfEr4kr/9DghQN0WNzQ91jh/32sTi7eh/0Hlsir9KnMgfcnRQkhvCzcgBPn+EnZBorwBX6pg9thkAs05OvT9VMMR0b04mAb8XCUFdgAg==

Sheet Climate (hidden)
A1: ZipCode | B1: ET | C1: HardVal | D1: Amb DB | E1: HardRange | F1: State | G1: Postal Code | H1: Weather Station
A2: 1001 | B2: 10.178293 | C2: 0 | D2: 48.5 | E2: 0-60 | F2: Massachusetts | H2: Westfield Barnes Muni AP
A3: 1002 | B3: 7.735914 | C3: 0 | D3: 49.4 | E3: 0-60 | F3: Massachusetts | H3: Chicopee Falls Westo
A4: 1003 | B4: 8.305162 | C4: 0 | D4: 49.4 | E4: 0-60 | F4: Massachusetts | H4: Chicopee Falls Westo
A5: 1005 | B5: 6.277885 | C5: 0 | D5: 46.4 | E5: 0-60 | F5: Massachusetts | H5: Worchester Regional Arpt
A6: 1007 | B6: 8.17014 | C6: 0 | D6: 49.4 | E6: 0-60 | F6: Massachusetts | H6: Chicopee Falls Westo
A7: 1008 | B7: 5.704115 | C7: 0 | D7: 48.5 | E7: 0-60 | F7: Massachusetts | H7: Westfield Barnes Muni AP
A8: 1009 | B8: 5.704115 | C8: 0 | D8: 49.4 | E8: 0-60 | F8: Massachusetts | H8: Chicopee Falls Westo
A9: 1010 | B9: 6.987038 | C9: 0 | D9: 49.4 | E9: 0-60 | F9: Massachusetts | H9: Chicopee Falls Westo
A10: 1011 | B10: 5.230553 | C10: 0 | D10: 48.5 | E10: 0-60 | F10: Massachusetts | H10: Westfield Barnes Muni AP
A11: 1012 | B11: 5.902689 | C11: 0 | D11: 48.5 | E11: 0-60 | F11: Massachusetts | H11: Westfield Barnes Muni AP
A12: 1013 | B12: 9.826495 | C12: 0 | D12: 49.4 | E12: 0-60 | F12: Massachusetts | H12: Chicopee Falls Westo
A13: 1020 | B13: 9.792791 | C13: 0 | D13: 49.4 | E13: 0-60 | F13: Massachusetts | H13: Chicopee Falls Westo
A14: 1022 | B14: 9.603432 | C14: 0 | D14: 49.4 | E14: 0-60 | F14: Massachusetts | H14: Chicopee Falls Westo
A15: 1026 | B15: 4.870772 | C15: 0 | D15: 47.9 | E15: 0-60 | F15: Massachusetts | H15: North Adams
A16: 1027 | B16: 7.347625 | C16: 0 | D16: 48.5 | E16: 0-60 | F16: Massachusetts | H16: Westfield Barnes Muni AP
A17: 1028 | B17: 9.51768 | C17: 0 | D17: 49.4 | E17: 0-60 | F17: Massachusetts | H17: Chicopee Falls Westo
A18: 1029 | B18: 9.51768 | C18: 60 | D18: 48.5 | E18: 61-120 | F18: Massachusetts | H18: Westfield Barnes Muni AP
A19: 1030 | B19: 9.950919 | C19: 0 | D19: 48.5 | E19: 0-60 | F19: Massachusetts | H19: Westfield Barnes Muni AP
A20: 1031 | B20: 6.833976 | C20: 0 | D20: 46.4 | E20: 0-60 | F20: Massachusetts | H20: Worchester Regional Arpt
A21: 1032 | B21: 5.346315 | C21: 0 | D21: 48.5 | E21: 0-60 | F21: Massachusetts | H21: Westfield Barnes Muni AP
A22: 1033 | B22: 9.080745 | C22: 0 | D22: 49.4 | E22: 0-60 | F22: Massachusetts | H22: Chicopee Falls Westo
A23: 1034 | B23: 6.031742 | C23: 0 | D23: 48.5 | E23: 0-60 | F23: Massachusetts | H23: Westfield Barnes Muni AP
A24: 1035 | B24: 8.925006 | C24: 0 | D24: 49.4 | E24: 0-60 | F24: Massachusetts | H24: Chicopee Falls Westo
A25: 1036 | B25: 8.668452 | C25: 0 | D25: 49.4 | E25: 0-60 | F25: Massachusetts | H25: Chicopee Falls Westo
A26: 1037 | B26: 8.668452 | C26: 0 | D26: 46.4 | E26: 0-60 | F26: Massachusetts | H26: Worchester Regional Arpt
A27: 1038 | B27: 8.564566 | C27: 0 | D27: 49.4 | E27: 0-60 | F27: Massachusetts | H27: Chicopee Falls Westo
A28: 1039 | B28: 6.856999 | C28: 0 | D28: 49.4 | E28: 0-60 | F28: Massachusetts | H28: Chicopee Falls Westo
A29: 1040 | B29: 9.288873 | C29: 0 | D29: 48.5 | E29: 0-60 | F29: Massachusetts | H29: Westfield Barnes Muni AP
A30: 1050 | B30: 6.148584 | C30: 0 | D30: 48.5 | E30: 0-60 | F30: Massachusetts | H30: Westfield Barnes Muni AP
A31: 1053 | B31: 6.991479 | C31: 0 | D31: 48.5 | E31: 0-60 | F31: Massachusetts | H31: Westfield Barnes Muni AP
A32: 1054 | B32: 7.496123 | C32: 0 | D32: 49.4 | E32: 0-60 | F32: Massachusetts | H32: Chicopee Falls Westo
A33: 1056 | B33: 9.017783 | C33: 0 | D33: 49.4 | E33: 0-60 | F33: Massachusetts | H33: Chicopee Falls Westo
A34: 1057 | B34: 7.682674 | C34: 0 | D34: 49.4 | E34: 0-60 | F34: Massachusetts | H34: Chicopee Falls Westo
A35: 1060 | B35: 8.60499 | C35: 0 | D35: 49.4 | E35: 0-60 | F35: Massachusetts | H35: Chicopee Falls Westo
A36: 1062 | B36: 7.676025 | C36: 0 | D36: 48.5 | E36: 0-60 | F36: Massachusetts | H36: Westfield Barnes Muni AP
A37: 1063 | B37: 7.676025 | C37: 0 | D37: 49.4 | E37: 0-60 | F37: Massachusetts | H37: Chicopee Falls Westo
A38: 1066 | B38: 7.676025 | C38: 0 | D38: 49.4 | E38: 0-60 | F38: Massachusetts | H38: Chicopee Falls Westo
A39: 1068 | B39: 6.344721 | C39: 0 | D39: 46.4 | E39: 0-60 | F39: Massachusetts | H39: Worchester Regional Arpt
A40: 1069 | B40: 7.755505 | C40: 0 | D40: 49.4 | E40: 0-60 | F40: Massachusetts | H40: Chicopee Falls Westo
A41: 1070 | B41: 4.525028 | C41: 0 | D41: 47.9 | E41: 0-60 | F41: Massachusetts | H41: North Adams
A42: 1071 | B42: 6.883969 | C42: 0 | D42: 48.5 | E42: 0-60 | F42: Massachusetts | H42: Westfield Barnes Muni AP
A43: 1072 | B43: 6.735567 | C43: 0 | D43: 49.4 | E43: 0-60 | F43: Massachusetts | H43: Chicopee Falls Westo
A44: 1073 | B44: 8.169778 | C44: 0 | D44: 48.5 | E44: 0-60 | F44: Massachusetts | H44: Westfield Barnes Muni AP
A45: 1074 | B45: 8.169778 | C45: 0 | D45: 46.4 | E45: 0-60 | F45: Massachusetts | H45: Worchester Regional Arpt
A46: 1075 | B46: 9.478114 | C46: 0 | D46: 49.4 | E46: 0-60 | F46: Massachusetts | H46: Chicopee Falls Westo
A47: 1077 | B47: 8.972299 | C47: 0 | D47: 48.5 | E47: 0-60 | F47: Massachusetts | H47: Westfield Barnes Muni AP
A48: 1079 | B48: 8.972299 | C48: 0 | D48: 49.4 | E48: 0-60 | F48: Massachusetts | H48: Chicopee Falls Westo
A49: 1080 | B49: 8.3002 | C49: 0 | D49: 49.4 | E49: 0-60 | F49: Massachusetts | H49: Chicopee Falls Westo
A50: 1081 | B50: 6.870716 | C50: 0 | D50: 49.4 | E50: 0-60 | F50: Massachusetts | H50: Chicopee Falls Westo
A51: 1082 | B51: 7.462558 | C51: 0 | D51: 49.4 | E51: 0-60 | F51: Massachusetts | H51: Chicopee Falls Westo
A52: 1083 | B52: 7.462558 | C52: 0 | D52: 46.4 | E52: 0-60 | F52: Massachusetts | H52: Worchester Regional Arpt
A53: 1084 | B53: 5.344807 | C53: 0 | D53: 48.5 | E53: 0-60 | F53: Massachusetts | H53: Westfield Barnes Muni AP
A54: 1085 | B54: 8.390468 | C54: 0 | D54: 48.5 | E54: 0-60 | F54: Massachusetts | H54: Westfield Barnes Muni AP
A55: 1086 | B55: 8.390468 | C55: 0 | D55: 48.5 | E55: 0-60 | F55: Massachusetts | H55: Westfield Barnes Muni AP
A56: 1088 | B56: 7.729126 | C56: 0 | D56: 49.4 | E56: 0-60 | F56: Massachusetts | H56: Chicopee Falls Westo
A57: 1089 | B57: 9.758905 | C57: 0 | D57: 48.5 | E57: 0-60 | F57: Massachusetts | H57: Westfield Barnes Muni AP
A58: 1092 | B58: 7.209706 | C58: 0 | D58: 49.4 | E58: 0-60 | F58: Massachusetts | H58: Chicopee Falls Westo
A59: 1093 | B59: 7.209706 | C59: 0 | D59: 49.4 | E59: 0-60 | F59: Massachusetts | H59: Chicopee Falls Westo
A60: 1094 | B60: 7.209706 | C60: 0 | D60: 46.4 | E60: 0-60 | F60: Massachusetts | H60: Worchester Regional Arpt
A61: 1095 | B61: 8.875611 | C61: 0 | D61: 49.4 | E61: 0-60 | F61: Massachusetts | H61: Chicopee Falls Westo
A62: 1096 | B62: 5.823311 | C62: 0 | D62: 48.5 | E62: 0-60 | F62: Massachusetts | H62: Westfield Barnes Muni AP
A63: 1097 | B63: 5.823311 | C63: 0 | D63: 48.5 | E63: 0-60 | F63: Massachusetts | H63: Westfield Barnes Muni AP
A64: 1098 | B64: 4.844854 | C64: 0 | D64: 48.5 | E64: 0-60 | F64: Massachusetts | H64: Westfield Barnes Muni AP
A65: 1103 | B65: 10.209689 | C65: 0 | D65: 49.4 | E65: 0-60 | F65: Massachusetts | H65: Chicopee Falls Westo
A66: 1104 | B66: 9.972193 | C66: 0 | D66: 49.4 | E66: 0-60 | F66: Massachusetts | H66: Chicopee Falls Westo
A67: 1105 | B67: 10.227605 | C67: 0 | D67: 49.4 | E67: 0-60 | F67: Massachusetts | H67: Chicopee Falls Westo
A68: 1106 | B68: 10.179612 | C68: 0 | D68: 50.7 | E68: 0-60 | F68: Connecticut | H68: Hartford Bradley Intl AP
A69: 1107 | B69: 10.033694 | C69: 0 | D69: 48.5 | E69: 0-60 | F69: Massachusetts | H69: Westfield Barnes Muni AP
A70: 1108 | B70: 10.095382 | C70: 0 | D70: 49.4 | E70: 0-60 | F70: Massachusetts | H70: Chicopee Falls Westo
A71: 1109 | B71: 9.904171 | C71: 0 | D71: 49.4 | E71: 0-60 | F71: Massachusetts | H71: Chicopee Falls Westo
A72: 1118 | B72: 9.773624 | C72: 0 | D72: 49.4 | E72: 0-60 | F72: Massachusetts | H72: Chicopee Falls Westo
A73: 1119 | B73: 9.566698 | C73: 0 | D73: 49.4 | E73: 0-60 | F73: Massachusetts | H73: Chicopee Falls Westo
A74: 1128 | B74: 9.43144 | C74: 0 | D74: 49.4 | E74: 0-60 | F74: Massachusetts | H74: Chicopee Falls Westo
A75: 1129 | B75: 9.36034 | C75: 0 | D75: 49.4 | E75: 0-60 | F75: Massachusetts | H75: Chicopee Falls Westo
A76: 1151 | B76: 9.465617 | C76: 0 | D76: 49.4 | E76: 0-60 | F76: Massachusetts | H76: Chicopee Falls Westo
A77: 1199 | B77: 9.465617 | C77: 0 | D77: 48.5 | E77: 0-60 | F77: Massachusetts | H77: Westfield Barnes Muni AP
A78: 1201 | B78: 4.589936 | C78: 60 | D78: 47.9 | E78: 61-120 | F78: Massachusetts | H78: North Adams
A79: 1220 | B79: 3.587241 | C79: 0 | D79: 47.9 | E79: 0-60 | F79: Massachusetts | H79: North Adams
A80: 1222 | B80: 5.089726 | C80: 60 | D80: 48.5 | E80: 61-120 | F80: Massachusetts | H80: Westfield Barnes Muni AP
A81: 1223 | B81: 4.271029 | C81: 60 | D81: 48.5 | E81: 61-120 | F81: Massachusetts | H81: Westfield Barnes Muni AP
A82: 1224 | B82: 4.034073 | C82: 60 | D82: 47.9 | E82: 61-120 | F82: Massachusetts | H82: North Adams
A83: 1225 | B83: 3.713571 | C83: 0 | D83: 47.9 | E83: 0-60 | F83: Massachusetts | H83: North Adams
A84: 1226 | B84: 3.95144 | C84: 60 | D84: 47.9 | E84: 61-120 | F84: Massachusetts | H84: North Adams
A85: 1229 | B85: 3.95144 | C85: 60 | D85: 47.9 | E85: 61-120 | F85: Massachusetts | H85: North Adams
A86: 1230 | B86: 5.030069 | C86: 60 | D86: 48.5 | E86: 61-120 | F86: Massachusetts | H86: Westfield Barnes Muni AP
A87: 1235 | B87: 3.99007 | C87: 60 | D87: 47.9 | E87: 61-120 | F87: Massachusetts | H87: North Adams
A88: 1236 | B88: 5.062827 | C88: 60 | D88: 47.9 | E88: 61-120 | F88: Massachusetts | H88: North Adams
A89: 1237 | B89: 3.960934 | C89: 0 | D89: 47.9 | E89: 0-60 | F89: Massachusetts | H89: North Adams
A90: 1238 | B90: 4.627186 | C90: 60 | D90: 47.9 | E90: 61-120 | F90: Massachusetts | H90: North Adams
A91: 1240 | B91: 4.796999 | C91: 60 | D91: 47.9 | E91: 61-120 | F91: Massachusetts | H91: North Adams
A92: 1242 | B92: 4.796999 | C92: 60 | D92: 47.9 | E92: 61-120 | F92: Massachusetts | H92: North Adams
A93: 1243 | B93: 4.571273 | C93: 60 | D93: 48.5 | E93: 61-120 | F93: Massachusetts | H93: Westfield Barnes Muni AP
A94: 1244 | B94: 4.571273 | C94: 60 | D94: 48.5 | E94: 61-120 | F94: Massachusetts | H94: Westfield Barnes Muni AP
A95: 1245 | B95: 4.7846 | C95: 60 | D95: 48.5 | E95: 61-120 | F95: Massachusetts | H95: Westfield Barnes Muni AP
A96: 1247 | B96: 3.48165 | C96: 0 | D96: 47.9 | E96: 0-60 | F96: Massachusetts | H96: North Adams
A97: 1253 | B97: 4.637163 | C97: 60 | D97: 48.5 | E97: 61-120 | F97: Massachusetts | H97: Westfield Barnes Muni AP
A98: 1254 | B98: 5.042419 | C98: 60 | D98: 47.9 | E98: 61-120 | F98: Massachusetts | H98: North Adams
A99: 1255 | B99: 4.956101 | C99: 60 | D99: 48.5 | E99: 61-120 | F99: Massachusetts | H99: Westfield Barnes Muni AP
A100: 1256 | B100: 3.794914 | C100: 0 | D100: 47.9 | E100: 0-60 | F100: Massachusetts | H100: North Adams
A101: 1257 | B101: 5.044087 | C101: 60 | D101: 48.5 | E101: 61-120 | F101: Massachusetts | H101: Westfield Barnes Muni AP
A102: 1258 | B102: 5.41307 | C102: 60 | D102: 48.5 | E102: 61-120 | F102: Massachusetts | H102: Westfield Barnes Muni AP
A103: 1259 | B103: 5.093536 | C103: 60 | D103: 48.5 | E103: 61-120 | F103: Massachusetts | H103: Westfield Barnes Muni AP
A104: 1260 | B104: 5.093536 | C104: 60 | D104: 47.9 | E104: 61-120 | F104: Massachusetts | H104: North Adams
A105: 1262 | B105: 4.907278 | C105: 60 | D105: 47.9 | E105: 61-120 | F105: Massachusetts | H105: North Adams
A106: 1264 | B106: 4.907278 | C106: 60 | D106: 48.5 | E106: 61-120 | F106: Massachusetts | H106: Westfield Barnes Muni AP
A107: 1266 | B107: 5.090164 | C107: 60 | D107: 47.9 | E107: 61-120 | F107: Massachusetts | H107: North Adams
A108: 1267 | B108: 4.28384 | C108: 0 | D108: 47.9 | E108: 0-60 | F108: Massachusetts | H108: North Adams
A109: 1270 | B109: 3.831765 | C109: 60 | D109: 47.9 | E109: 61-120 | F109: Massachusetts | H109: North Adams
A110: 1301 | B110: 7.327536 | C110: 0 | D110: 46.8 | E110: 0-60 | F110: New Hampshire | H110: Dillant Hopkins
A111: 1330 | B111: 5.275499 | C111: 0 | D111: 47.9 | E111: 0-60 | F111: Massachusetts | H111: North Adams
A112: 1331 | B112: 6.361045 | C112: 0 | D112: 46.8 | E112: 0-60 | F112: New Hampshire | H112: Dillant Hopkins
A113: 1337 | B113: 6.804292 | C113: 0 | D113: 46.8 | E113: 0-60 | F113: New Hampshire | H113: Dillant Hopkins
A114: 1338 | B114: 5.316707 | C114: 0 | D114: 47.9 | E114: 0-60 | F114: Massachusetts | H114: North Adams
A115: 1339 | B115: 4.388911 | C115: 0 | D115: 47.9 | E115: 0-60 | F115: Massachusetts | H115: North Adams
A116: 1340 | B116: 5.194754 | C116: 0 | D116: 47.9 | E116: 0-60 | F116: Massachusetts | H116: North Adams
A117: 1341 | B117: 6.381844 | C117: 0 | D117: 49.4 | E117: 0-60 | F117: Massachusetts | H117: Chicopee Falls Westo
A118: 1342 | B118: 7.755401 | C118: 0 | D118: 49.4 | E118: 0-60 | F118: Massachusetts | H118: Chicopee Falls Westo
A119: 1343 | B119: 3.691411 | C119: 0 | D119: 47.9 | E119: 0-60 | F119: Massachusetts | H119: North Adams
A120: 1344 | B120: 6.846841 | C120: 0 | D120: 46.8 | E120: 0-60 | F120: New Hampshire | H120: Dillant Hopkins
A121: 1346 | B121: 4.483396 | C121: 0 | D121: 47.9 | E121: 0-60 | F121: Massachusetts | H121: North Adams
A122: 1347 | B122: 4.483396 | C122: 0 | D122: 49.4 | E122: 0-60 | F122: Massachusetts | H122: Chicopee Falls Westo
A123: 1349 | B123: 7.32206 | C123: 0 | D123: 46.8 | E123: 0-60 | F123: New Hampshire | H123: Dillant Hopkins
A124: 1350 | B124: 3.356772 | C124: 0 | D124: 47.9 | E124: 0-60 | F124: Massachusetts | H124: North Adams
A125: 1351 | B125: 7.672188 | C125: 0 | D125: 49.4 | E125: 0-60 | F125: Massachusetts | H125: Chicopee Falls Westo
A126: 1354 | B126: 7.344715 | C126: 0 | D126: 46.8 | E126: 0-60 | F126: New Hampshire | H126: Dillant Hopkins
A127: 1355 | B127: 6.844867 | C127: 0 | D127: 49.4 | E127: 0-60 | F127: Massachusetts | H127: Chicopee Falls Westo
A128: 1360 | B128: 7.086235 | C128: 0 | D128: 46.8 | E128: 0-60 | F128: New Hampshire | H128: Dillant Hopkins
A129: 1364 | B129: 6.593159 | C129: 0 | D129: 46.8 | E129: 0-60 | F129: New Hampshire | H129: Dillant Hopkins
A130: 1366 | B130: 6.71354 | C130: 0 | D130: 46.4 | E130: 0-60 | F130: Massachusetts | H130: Worchester Regional Arpt
A131: 1367 | B131: 3.675588 | C131: 0 | D131: 47.9 | E131: 0-60 | F131: Massachusetts | H131: North Adams
A132: 1368 | B132: 5.994441 | C132: 0 | D132: 46.8 | E132: 0-60 | F132: New Hampshire | H132: Dillant Hopkins
A133: 1370 | B133: 5.758054 | C133: 0 | D133: 47.9 | E133: 0-60 | F133: Massachusetts | H133: North Adams
A134: 1373 | B134: 7.950943 | C134: 0 | D134: 49.4 | E134: 0-60 | F134: Massachusetts | H134: Chicopee Falls Westo
A135: 1375 | B135: 8.348775 | C135: 0 | D135: 49.4 | E135: 0-60 | F135: Massachusetts | H135: Chicopee Falls Westo
A136: 1376 | B136: 7.792097 | C136: 0 | D136: 46.8 | E136: 0-60 | F136: New Hampshire | H136: Dillant Hopkins
A137: 1378 | B137: 6.702702 | C137: 0 | D137: 46.8 | E137: 0-60 | F137: New Hampshire | H137: Dillant Hopkins
A138: 1379 | B138: 6.671146 | C138: 0 | D138: 46.8 | E138: 0-60 | F138: New Hampshire | H138: Dillant Hopkins
A139: 1420 | B139: 6.833276 | C139: 0 | D139: 46.4 | E139: 0-60 | F139: Massachusetts | H139: Worchester Regional Arpt
A140: 1430 | B140: 5.72224 | C140: 0 | D140: 46.8 | E140: 0-60 | F140: New Hampshire | H140: Dillant Hopkins
A141: 1431 | B141: 6.616023 | C141: 0 | D141: 49.6 | E141: 0-60 | F141: New Hampshire | H141: Manchester Airport
A142: 1432 | B142: 8.719859 | C142: 0 | D142: 50.3 | E142: 0-60 | F142: Massachusetts | H142: Lawrence Muni
A143: 1434 | B143: 8.428496 | C143: 0 | D143: 46.4 | E143: 0-60 | F143: Massachusetts | H143: Worchester Regional Arpt
A144: 1436 | B144: 5.847916 | C144: 0 | D144: 46.8 | E144: 0-60 | F144: New Hampshire | H144: Dillant Hopkins
A145: 1438 | B145: 5.847916 | C145: 0 | D145: 46.4 | E145: 0-60 | F145: Massachusetts | H145: Worchester Regional Arpt
A146: 1440 | B146: 5.812043 | C146: 0 | D146: 46.4 | E146: 0-60 | F146: Massachusetts | H146: Worchester Regional Arpt
A147: 1450 | B147: 8.816217 | C147: 0 | D147: 49.6 | E147: 0-60 | F147: New Hampshire | H147: Manchester Airport
A148: 1451 | B148: 8.599706 | C148: 0 | D148: 46.4 | E148: 0-60 | F148: Massachusetts | H148: Worchester Regional Arpt
A149: 1452 | B149: 5.997449 | C149: 0 | D149: 46.4 | E149: 0-60 | F149: Massachusetts | H149: Worchester Regional Arpt
A150: 1453 | B150: 7.319267 | C150: 0 | D150: 46.4 | E150: 0-60 | F150: Massachusetts | H150: Worchester Regional Arpt
A151: 1460 | B151: 9.056722 | C151: 0 | D151: 50.3 | E151: 0-60 | F151: Massachusetts | H151: Lawrence Muni
A152: 1462 | B152: 7.784025 | C152: 0 | D152: 46.4 | E152: 0-60 | F152: Massachusetts | H152: Worchester Regional Arpt
A153: 1463 | B153: 8.67119 | C153: 0 | D153: 49.6 | E153: 0-60 | F153: New Hampshire | H153: Manchester Airport
A154: 1464 | B154: 8.27399 | C154: 0 | D154: 46.4 | E154: 0-60 | F154: Massachusetts | H154: Worchester Regional Arpt
A155: 1467 | B155: 8.27399 | C155: 0 | D155: 46.4 | E155: 0-60 | F155: Massachusetts | H155: Worchester Regional Arpt
A156: 1468 | B156: 5.90117 | C156: 0 | D156: 46.4 | E156: 0-60 | F156: Massachusetts | H156: Worchester Regional Arpt
A157: 1469 | B157: 8.006737 | C157: 0 | D157: 49.6 | E157: 0-60 | F157: New Hampshire | H157: Manchester Airport
A158: 1473 | B158: 6.04695 | C158: 0 | D158: 46.4 | E158: 0-60 | F158: Massachusetts | H158: Worchester Regional Arpt
A159: 1474 | B159: 7.547148 | C159: 0 | D159: 49.6 | E159: 0-60 | F159: New Hampshire | H159: Manchester Airport
A160: 1475 | B160: 5.685193 | C160: 0 | D160: 46.8 | E160: 0-60 | F160: New Hampshire | H160: Dillant Hopkins
A161: 1501 | B161: 7.072361 | C161: 0 | D161: 46.4 | E161: 0-60 | F161: Massachusetts | H161: Worchester Regional Arpt
A162: 1503 | B162: 8.17228 | C162: 0 | D162: 46.4 | E162: 0-60 | F162: Massachusetts | H162: Worchester Regional Arpt
A163: 1504 | B163: 9.007148 | C163: 0 | D163: 48.7 | E163: 0-60 | F163: Rhode Island | H163: Pawtucket (AWOS)
A164: 1505 | B164: 7.723359 | C164: 0 | D164: 46.4 | E164: 0-60 | F164: Massachusetts | H164: Worchester Regional Arpt
A165: 1506 | B165: 6.869774 | C165: 0 | D165: 46.4 | E165: 0-60 | F165: Massachusetts | H165: Worchester Regional Arpt
A166: 1507 | B166: 6.945284 | C166: 0 | D166: 46.4 | E166: 0-60 | F166: Massachusetts | H166: Worchester Regional Arpt
A167: 1510 | B167: 7.857143 | C167: 0 | D167: 46.4 | E167: 0-60 | F167: Massachusetts | H167: Worchester Regional Arpt
A168: 1515 | B168: 6.755707 | C168: 0 | D168: 46.4 | E168: 0-60 | F168: Massachusetts | H168: Worchester Regional Arpt
A169: 1516 | B169: 7.59912 | C169: 0 | D169: 48.7 | E169: 0-60 | F169: Rhode Island | H169: Pawtucket (AWOS)
A170: 1518 | B170: 6.877531 | C170: 0 | D170: 46.4 | E170: 0-60 | F170: Massachusetts | H170: Worchester Regional Arpt
A171: 1519 | B171: 8.074977 | C171: 0 | D171: 46.4 | E171: 0-60 | F171: Massachusetts | H171: Worchester Regional Arpt
A172: 1520 | B172: 6.672026 | C172: 0 | D172: 46.4 | E172: 0-60 | F172: Massachusetts | H172: Worchester Regional Arpt
A173: 1521 | B173: 6.846499 | C173: 0 | D173: 46.4 | E173: 0-60 | F173: Massachusetts | H173: Worchester Regional Arpt
A174: 1522 | B174: 6.467086 | C174: 0 | D174: 46.4 | E174: 0-60 | F174: Massachusetts | H174: Worchester Regional Arpt
A175: 1523 | B175: 7.971656 | C175: 0 | D175: 46.4 | E175: 0-60 | F175: Massachusetts | H175: Worchester Regional Arpt
A176: 1524 | B176: 6.465399 | C176: 0 | D176: 46.4 | E176: 0-60 | F176: Massachusetts | H176: Worchester Regional Arpt
A177: 1525 | B177: 6.465399 | C177: 0 | D177: 48.7 | E177: 0-60 | F177: Rhode Island | H177: Pawtucket (AWOS)
A178: 1527 | B178: 7.513368 | C178: 0 | D178: 46.4 | E178: 0-60 | F178: Massachusetts | H178: Worchester Regional Arpt
A179: 1529 | B179: 8.765234 | C179: 0 | D179: 48.7 | E179: 0-60 | F179: Rhode Island | H179: Pawtucket (AWOS)
A180: 1531 | B180: 6.698702 | C180: 0 | D180: 46.4 | E180: 0-60 | F180: Massachusetts | H180: Worchester Regional Arpt
A181: 1532 | B181: 8.157788 | C181: 0 | D181: 46.4 | E181: 0-60 | F181: Massachusetts | H181: Worchester Regional Arpt
A182: 1534 | B182: 8.302121 | C182: 0 | D182: 46.4 | E182: 0-60 | F182: Massachusetts | H182: Worchester Regional Arpt
A183: 1535 | B183: 6.697097 | C183: 0 | D183: 46.4 | E183: 0-60 | F183: Massachusetts | H183: Worchester Regional Arpt
A184: 1536 | B184: 7.993111 | C184: 0 | D184: 46.4 | E184: 0-60 | F184: Massachusetts | H184: Worchester Regional Arpt
A185: 1537 | B185: 6.915522 | C185: 0 | D185: 46.4 | E185: 0-60 | F185: Massachusetts | H185: Worchester Regional Arpt
A186: 1540 | B186: 7.246815 | C186: 0 | D186: 46.4 | E186: 0-60 | F186: Massachusetts | H186: Worchester Regional Arpt
A187: 1541 | B187: 6.290704 | C187: 0 | D187: 46.4 | E187: 0-60 | F187: Massachusetts | H187: Worchester Regional Arpt
A188: 1542 | B188: 6.657213 | C188: 0 | D188: 46.4 | E188: 0-60 | F188: Massachusetts | H188: Worchester Regional Arpt
A189: 1543 | B189: 6.174155 | C189: 0 | D189: 46.4 | E189: 0-60 | F189: Massachusetts | H189: Worchester Regional Arpt
A190: 1545 | B190: 7.858647 | C190: 0 | D190: 46.4 | E190: 0-60 | F190: Massachusetts | H190: Worchester Regional Arpt
A191: 1550 | B191: 7.006148 | C191: 0 | D191: 46.4 | E191: 0-60 | F191: Massachusetts | H191: Worchester Regional Arpt
A192: 1560 | B192: 8.050262 | C192: 0 | D192: 46.4 | E192: 0-60 | F192: Massachusetts | H192: Worchester Regional Arpt
A193: 1561 | B193: 8.050262 | C193: 0 | D193: 46.4 | E193: 0-60 | F193: Massachusetts | H193: Worchester Regional Arpt
A194: 1562 | B194: 6.548887 | C194: 0 | D194: 46.4 | E194: 0-60 | F194: Massachusetts | H194: Worchester Regional Arpt
A195: 1564 | B195: 7.273222 | C195: 0 | D195: 46.4 | E195: 0-60 | F195: Massachusetts | H195: Worchester Regional Arpt
A196: 1566 | B196: 6.86063 | C196: 0 | D196: 46.4 | E196: 0-60 | F196: Massachusetts | H196: Worchester Regional Arpt
A197: 1568 | B197: 8.510786 | C197: 0 | D197: 46.4 | E197: 0-60 | F197: Massachusetts | H197: Worchester Regional Arpt
A198: 1569 | B198: 8.34412 | C198: 0 | D198: 48.7 | E198: 0-60 | F198: Rhode Island | H198: Pawtucket (AWOS)
A199: 1570 | B199: 7.443731 | C199: 0 | D199: 46.4 | E199: 0-60 | F199: Massachusetts | H199: Worchester Regional Arpt
A200: 1571 | B200: 7.319783 | C200: 0 | D200: 46.4 | E200: 0-60 | F200: Massachusetts | H200: Worchester Regional Arpt
... 4300 more rows
